bitfinex/quotes_ETHUSD_20240819
["timestamp","ask_amount","ask_price","bid_price","bid_amount"]
[1724080648655,4.254343,2585.6,2585.1,7.73651]
[1724080648810,3.8676,2585.6,2585.1,3.8682]
[1724080649010,3.8676,2585.6,2585.1,7.73644]
[1724080649328,3.8676,2585.6,2585.1,3.8682]
[1724080649821,3.8676,2585.6,2585.1,7.73645]
[1724080650023,0.38676,2585.5,2585.1,3.8682]
[1724080650224,0.38676,2585.5,2584.7,3.86889]
[1724080650225,3.86794,2585.4,2584.7,3.86888]
[1724080650425,3.86824,2585.2,2584.7,3.86888]
[1724080650616,4.53611,2585.3,2584.7,3.86885]
[1724080650960,4.53611,2585.3,2584.8,3.86864]
[1724080651166,3.86839,2585.1,2584.5,3.9925454]
[1724080651309,3.86862,2584.9,2584.5,0.1234354]
[1724080651772,2.3763,2585.0,2584.5,3.9926454]
[1724080651773,3.86847,2585.0,2584.5,3.9926454]
[1724080651923,0.773691,2584.9,2584.5,3.9925354]
[1724080652130,7.73814,2584.6,2584.5,0.1234354]
[1724080652459,8.5462073,2584.6,2584.5,0.1234354]
[1724080652663,9.0962073,2584.6,2584.5,0.1234354]
[1724080653226,15.2377773,2584.6,2584.5,0.1234354]
[1724080653425,26.9939146,2584.6,2584.5,0.1234354]
[1724080653627,26.9939146,2584.6,2584.5,0.08465855]
[1724080653628,29.13782699,2584.6,2584.5,0.08465855]
[1724080653869,31.79595203,2584.6,2584.5,0.08465855]
[1724080654167,29.13782699,2584.6,2584.5,0.08465855]
[1724080654464,35.66353853,2584.6,2584.5,8.55e-06]
[1724080654877,31.79446853,2584.6,2584.5,8.55e-06]
[1724080655379,29.3741971,2584.6,2584.5,8.55e-06]
[1724080655542,29.13782699,2584.6,2584.5,8.55e-06]
[1724080655745,21.18975699,2584.6,2584.5,8.55e-06]
[1724080656137,25.05882699,2584.6,2584.5,8.55e-06]
[1724080656622,25.119419,2584.6,2584.5,8.55e-06]
[1724080657330,27.13287041,2584.6,2584.5,8.55e-06]
[1724080657526,19.39473041,2584.6,2584.5,8.55e-06]
[1724080657871,18.44206486,2584.6,2584.5,8.55e-06]
[1724080658370,22.31113486,2584.6,2584.5,8.55e-06]
[1724080658543,18.14817516,2584.6,2584.5,8.55e-06]
[1724080658940,18.69817516,2584.6,2584.5,8.55e-06]
[1724080659141,19.10108787,2584.6,2584.5,8.55e-06]
[1724080659948,5.1374781,2584.6,2584.5,8.55e-06]
[1724080660146,7.79873201,2584.6,2584.5,8.55e-06]
[1724080660374,9.02235043,2584.6,2584.5,8.55e-06]
[1724080660675,0.06059201,2584.6,2584.5,8.55e-06]
[1724080661112,3.86863,2584.9,2584.5,8.55e-06]
[1724080661265,8.28522086,2585.2,2584.7,3.86884]
[1724080661465,4.67305086,2585.5,2584.8,3.86876]
[1724080661667,3.86802,2585.3,2584.9,2.3003]
[1724080662176,3.86788,2585.4,2584.9,6.16883]
[1724080662346,0.80522086,2585.6,2585.1,3.86829]
[1724080662347,4.67286086,2585.6,2585.1,3.86829]
[1724080662881,0.80522086,2585.6,2585.2,3.86816]
[1724080663179,0.80522086,2585.6,2584.9,6.16878]
[1724080663180,3.86774,2585.5,2584.9,6.16878]
[1724080663364,4.67296086,2585.5,2584.9,6.8243456]
[1724080663564,0.80522086,2585.6,2584.9,6.8243456]
[1724080663779,0.80522086,2585.5,2584.9,6.8243456]
[1724080663946,4.67287086,2585.6,2585.0,3.86845]
[1724080664145,3.86779,2585.5,2585.0,3.86845]
[1724080664357,4.67301086,2585.5,2585.0,3.86845]
[1724080664558,3.86795,2585.4,2584.9,2.3003]
[1724080664759,4.67309086,2585.4,2584.9,6.16891]
[1724080664956,5.64796008,2585.4,2584.9,2.3003]
[1724080665484,0.80522086,2585.2,2584.9,2.3003]
[1724080665692,4.67332086,2585.3,2584.9,2.3003]
[1724080666154,6.05057051,2585.4,2584.9,2.3003]
[1724080666155,0.80522086,2585.4,2584.9,2.3003]
[1724080666359,0.80522086,2585.4,2585.1,3.86824]
[1724080666670,1.20783129,2585.5,2585.3,3.86802]
[1724080666671,0.80522086,2585.5,2585.3,3.86802]
[1724080666876,8.88569632,2585.9,2585.3,3.86795]
[1724080666877,0.80522086,2585.6,2585.3,3.86795]
[1724080667082,0.80522086,2585.6,2585.2,3.86816]
[1724080667458,0.80522086,2585.6,2585.0,0.23003]
[1724080667459,3.86797,2585.4,2585.0,0.23003]
[1724080667609,4.67301086,2585.5,2584.9,2.3003]
[1724080667610,4.67330086,2585.3,2584.9,2.3003]
[1724080667796,1.20783129,2585.5,2584.6,2.2887]
[1724080667797,3.86847,2585.0,2584.6,2.2887]
[1724080668119,3.86847,2585.0,2584.5,8.55e-06]
[1724080668120,3.86872,2584.9,2584.5,8.55e-06]
[1724080668266,4.67394086,2584.9,2584.5,8.55e-06]
[1724080668471,0.80522086,2584.8,2584.5,8.55e-06]
[1724080668710,4.67394086,2584.9,2584.5,8.55e-06]
[1724080668917,0.80522086,2584.9,2584.5,3.86920855]
[1724080669227,0.80522086,2585.0,2584.5,3.86920855]
[1724080669366,0.80522086,2584.9,2584.5,7.73833855]
[1724080669566,0.80522086,2584.9,2584.5,3.86913855]
[1724080670169,0.80522086,2584.9,2584.6,3.86899]
[1724080670364,0.80522086,2585.0,2584.6,3.86899]
[1724080670621,0.80522086,2585.0,2584.8,3.86864]
[1724080670921,0.80522086,2585.1,2584.7,3.86889]
[1724080671073,0.80522086,2585.1,2584.8,3.86869]
[1724080671420,0.80522086,2585.0,2584.8,3.86869]
[1724080671618,0.06028857,2585.0,2584.8,3.86869]
[1724080671911,0.86550943,2585.0,2584.8,3.86869]
[1724080672286,0.86550943,2585.0,2584.7,3.86891]
[1724080672486,0.80522086,2584.9,2584.7,3.86891]
[1724080673009,0.80522086,2584.9,2584.8,3.86877]
[1724080673217,1.20783129,2585.1,2584.9,3.86862]
[1724080673218,0.80522086,2585.1,2584.9,3.86862]
[1724080673516,0.80522086,2585.1,2584.8,3.86876]
[1724080673665,0.80522086,2585.0,2584.8,3.86876]
[1724080675169,0.80522086,2584.9,2584.5,3.86909855]
[1724080675371,0.80522086,2584.9,2584.7,3.86884]
[1724080676023,0.80522086,2584.9,2584.5,8.55e-06]
[1724080676172,0.80522086,2584.8,2584.5,8.55e-06]
[1724080676368,1.40913651,2584.9,2584.5,8.55e-06]
[1724080676369,0.80522086,2584.9,2584.5,8.55e-06]
[1724080676577,0.80522086,2584.9,2584.6,3.86899]
[1724080676769,0.80522086,2584.9,2584.5,3.86911855]
[1724080677019,0.80522086,2584.9,2584.6,3.86906]
[1724080677683,1.20783129,2585.0,2584.8,3.86866]
[1724080677684,0.80522086,2585.0,2584.8,3.86866]
[1724080678622,0.80522086,2585.0,2584.9,3.86862]
[1724080678990,0.80522086,2585.1,2584.9,10.03854]
[1724080679197,0.80522086,2585.2,2585.1,7.73664]
[1724080679504,0.80522086,2585.3,2585.1,3.86829]
[1724080679819,3.86824,2585.2,2584.7,3.86885]
[1724080680026,0.80846287,2585.0,2584.7,3.86891]
[1724080680534,0.80846287,2585.0,2584.7,3.86884]
[1724080680700,0.80846287,2585.0,2584.8,3.86869]
[1724080681088,1.01009229,2585.0,2584.6,3.86905]
[1724080681294,4.67721287,2584.9,2584.5,8.55e-06]
[1724080681532,5.51609023,2584.9,2584.5,8.55e-06]
[1724080681748,4.67724287,2584.8,2584.5,8.55e-06]
[1724080682031,0.80846287,2584.7,2584.5,8.55e-06]
[1724080682242,0.80846287,2584.8,2584.5,3.86921855]
[1724080682406,5.91533865,2584.9,2584.7,3.86892]
[1724080682407,0.80846287,2584.9,2584.7,3.86892]
[1724080682622,0.80846287,2585.0,2584.8,3.8687]
[1724080682819,0.80846287,2585.0,2584.9,3.86862]
[1724080683226,0.80846287,2585.1,2585.0,3.86847]
[1724080683391,0.80846287,2585.2,2585.0,3.86847]
[1724080683592,0.80846287,2585.3,2585.0,3.86839]
[1724080683835,0.80846287,2585.3,2585.1,3.86832]
[1724080684001,0.80846287,2585.3,2585.1,7.73657]
[1724080684333,0.80846287,2585.3,2584.7,4.11883085]
[1724080684334,0.80846287,2585.4,2584.9,2.3259]
[1724080684533,0.80846287,2585.4,2585.2,3.86816]
[1724080684751,0.80846287,2585.5,2585.4,3.86787]
[1724080684905,0.80846287,2585.5,2585.2,3.86816]
[1724080684906,0.80846287,2585.5,2585.3,3.86801]
[1724080685097,0.80846287,2585.6,2585.3,3.86801]
[1724080685297,0.80846287,2585.6,2585.2,3.86816]
[1724080685298,0.80846287,2585.5,2585.2,3.86816]
[1724080685551,0.80846287,2585.5,2585.0,3.86834]
[1724080685552,1.55792187,2585.5,2585.0,3.86834]
[1724080685847,0.80846287,2585.3,2584.8,3.86866]
[1724080685993,0.80846287,2585.3,2585.0,3.86846]
[1724080686192,0.80846287,2585.3,2585.0,3.86836]
[1724080686431,1.20783129,2585.4,2585.0,3.86836]
[1724080686432,0.80846287,2585.2,2585.0,3.86836]
[1724080686630,0.80846287,2585.2,2584.6,2.4209]
[1724080686631,0.80846287,2585.1,2584.7,3.86878]
[1724080686881,0.80846287,2585.2,2584.7,3.86878]
[1724080687033,0.80846287,2585.1,2584.9,3.86851]
[1724080687431,0.80846287,2585.1,2585.0,3.86847]
[1724080687684,0.80846287,2585.2,2585.1,3.86832]
[1724080687863,1.20783129,2585.4,2585.2,3.86809]
[1724080687864,0.80846287,2585.4,2585.2,3.86809]
[1724080688279,0.80846287,2585.4,2585.1,3.86832]
[1724080688827,0.80846287,2585.3,2585.1,3.86832]
[1724080690045,1.55794387,2585.3,2584.7,3.86884]
[1724080690245,0.80846287,2585.1,2584.7,3.86884]
[1724080690460,0.80846287,2585.0,2584.7,3.86884]
[1724080690870,1.20783129,2585.2,2584.7,3.86884]
[1724080690871,0.80846287,2585.1,2584.8,3.86874]
[1724080691180,0.80846287,2585.1,2584.6,3.86906]
[1724080691346,4.67694287,2585.0,2584.5,3.86919855]
[1724080691534,0.80846287,2584.9,2584.6,3.86905]
[1724080691936,0.80846287,2585.0,2584.8,3.86876]
[1724080692294,0.80846287,2585.0,2584.9,3.86862]
[1724080692469,9.09078586,2585.3,2585.1,3.86832]
[1724080692470,8.28846287,2585.3,2585.1,3.86832]
[1724080692633,8.28846287,2585.3,2584.9,3.86849]
[1724080692838,0.80846287,2585.2,2585.0,3.86847]
[1724080693077,8.28846287,2585.3,2585.1,3.86832]
[1724080693754,7.48,2585.3,2585.2,7.73634]
[1724080694085,1.20783129,2585.5,2585.3,3.86802]
[1724080694086,0.80846287,2585.5,2585.3,3.86802]
[1724080694857,0.80846287,2585.6,2585.3,0.8509875]
[1724080695039,0.80837918,2585.6,2585.4,7.73565]
[1724080695242,0.80837918,2585.7,2585.4,3.86778]
[1724080695537,0.80837918,2585.6,2585.2,6.26024]
[1724080695789,4.67600918,2585.6,2585.1,3.86821]
[1724080695971,0.80837918,2585.4,2585.1,3.86821]
[1724080696584,0.80837918,2585.4,2585.0,3.86837]
[1724080696784,0.80837918,2585.3,2585.0,3.86837]
[1724080696988,0.80837918,2585.2,2584.9,3.86862]
[1724080697542,0.80837918,2585.2,2585.1,3.86832]
[1724080697744,0.80837918,2585.3,2585.1,3.86824]
[1724080697987,0.80837918,2585.4,2584.9,1.018337]
[1724080698190,1.20783129,2585.5,2585.2,3.86804]
[1724080698191,0.80837918,2585.5,2585.2,3.86804]
[1724080698395,0.80837918,2585.5,2585.4,10.06424]
[1724080698590,0.80837918,2585.7,2585.6,7.73514]
[1724080698921,1.20783129,2585.9,2585.5,3.86766]
[1724080698922,0.80837918,2585.8,2585.5,3.86766]
[1724080699444,0.80837918,2585.8,2585.1,2.3529]
[1724080699445,0.80837918,2585.8,2585.7,3.86742]
[1724080699892,0.80837918,2585.8,2585.6,3.86756]
[1724080700104,0.80837918,2585.8,2585.4,3.86775]
[1724080700405,0.80837918,2585.7,2585.4,3.86775]
[1724080700545,0.80837918,2585.7,2585.4,7.73551]
[1724080700746,0.80837918,2585.8,2585.4,7.73551]
[1724080701002,0.80837918,2585.8,2585.1,2.3529]
[1724080701158,0.80837918,2585.8,2585.7,3.86742]
[1724080701356,0.80865732,2585.8,2585.7,3.86742]
[1724080701584,0.80865732,2585.8,2585.7,7.73484]
[1724080701810,0.87012704,2585.8,2585.7,7.73484]
[1724080702370,0.06146972,2585.8,2585.7,7.73484]
[1724080704014,0.06146972,2585.8,2585.7,14.02156]
[1724080704218,0.87012704,2585.8,2585.7,10.927624]
[1724080704420,0.06146972,2585.8,2585.7,10.927624]
[1724080704747,1.26930101,2585.8,2585.5,3.86768]
[1724080705024,0.80936938,2585.6,2585.5,3.86768]
[1724080705271,1.61078586,2585.7,2585.6,3.86757]
[1724080707006,1.61078586,2585.7,2585.6,7.73514]
[1724080707236,1.61078586,2585.7,2585.6,8.508654]
[1724080707447,0.81014264,2585.7,2585.6,8.508654]
[1724080708515,0.81014264,2585.8,2585.7,7.73484]
[1724080709151,1.21530374,2585.9,2585.8,3.86727]
[1724080709640,1.61078586,2586.0,2585.7,3.86742]
[1724080709849,1.21464899,2585.8,2585.7,7.73476]
[1724080710439,1.61078586,2585.8,2585.5,3.8677]
[1724080710650,0.80972121,2585.6,2585.5,3.8677]
[1724080710800,0.80972121,2585.6,2585.5,7.73542]
[1724080711464,0.87153287,2585.6,2585.5,7.73542]
[1724080712155,0.06181166,2585.6,2585.5,7.73542]
[1724080713410,0.80972121,2585.8,2585.6,3.86748]
[1724080713608,0.80972121,2585.8,2585.7,3.86742]
[1724080714312,1.21458181,2585.8,2585.7,3.86742]
[1724080715222,1.21458181,2585.8,2585.7,7.73484]
[1724080715622,0.80952465,2585.8,2585.7,7.73484]
[1724080715838,1.21458181,2585.9,2585.8,7.73454]
[1724080716911,1.27638057,2585.9,2585.8,7.73454]
[1724080717143,1.27638057,2585.9,2585.8,9.138921]
[1724080717342,0.87128253,2585.9,2585.8,9.138921]
[1724080720463,0.87128253,2585.9,2585.8,3.86727]
[1724080720616,1.27638057,2585.9,2585.8,3.86727]
[1724080721230,0.06179876,2585.9,2585.8,3.86727]
[1724080721417,1.67258462,2585.9,2585.8,3.86727]
[1724080721939,1.27612204,2585.9,2585.8,3.86727]
[1724080722348,1.67258462,2585.9,2585.8,3.86727]
[1724080722717,0.06179876,2585.9,2585.8,3.86727]
[1724080722919,1.27630489,2585.9,2585.8,3.86727]
[1724080723329,1.67258462,2585.9,2585.8,3.86727]
[1724080723913,1.67258462,2585.9,2585.8,7.73454]
[1724080723914,1.27650446,2585.9,2585.8,7.73454]
[1724080724213,1.27650446,2585.9,2585.8,3.86727]
[1724080724662,1.27650446,2585.9,2585.8,7.73454]
[1724080725863,0.06179876,2585.9,2585.8,14.698664]
[1724080726181,0.06179876,2585.9,2585.8,26.1400946]
[1724080726340,8.76e-06,2585.9,2585.8,30.5573646]
[1724080726668,1.2147057,2586.8,2586.7,3.86592]
[1724080726870,1.2147057,2586.9,2586.7,3.86592]
[1724080727163,1.21390875,2586.9,2586.8,3.86578]
[1724080727522,1.21390875,2586.9,2586.6,3.86595]
[1724080727721,0.8090587,2586.8,2586.7,3.86592]
[1724080729670,0.8090587,2586.9,2586.7,3.86592]
[1724080730440,0.8090587,2586.9,2586.8,3.86578]
[1724080730647,0.8090587,2587.0,2586.8,3.86578]
[1724080730870,0.8090587,2586.9,2586.8,3.86578]
[1724080733568,0.8090587,2587.0,2586.7,3.86583]
[1724080733952,0.0609256,2586.9,2586.7,3.86583]
[1724080734145,0.8699843,2586.9,2586.7,4.63901]
[1724080734347,0.0609256,2586.9,2586.7,4.63901]
[1724080734578,0.0609256,2586.9,2586.8,3.86578]
[1724080735689,0.0609256,2586.9,2586.8,7.73156]
[1724080735990,0.8090587,2587.0,2586.8,1.159745]
[1724080736190,2.3577256,2586.9,2586.6,3.86596]
[1724080736505,0.8090587,2586.8,2586.6,3.86596]
[1724080736682,0.8090587,2586.8,2586.7,3.86592]
[1724080736879,0.86999719,2586.8,2586.7,3.86592]
[1724080737085,0.86999719,2586.8,2586.6,3.86596]
[1724080737577,0.8090587,2586.7,2586.6,3.86596]
[1724080737752,0.8090587,2586.8,2586.6,3.86596]
[1724080737949,0.06093849,2586.7,2586.6,3.86596]
[1724080738149,0.8090587,2586.8,2586.7,7.73184]
[1724080738351,1.61078586,2587.1,2586.1,9.4031]
[1724080738352,0.8090587,2587.0,2586.9,3.86563]
[1724080738655,0.8090587,2587.0,2586.9,4.638771]
[1724080738850,0.8090587,2587.0,2586.9,3.86563]
[1724080739397,0.8090587,2587.1,2586.9,3.86563]
[1724080739682,1.21390875,2587.2,2586.8,3.86578]
[1724080739683,0.8090587,2587.0,2586.8,3.86578]
[1724080740070,0.8090587,2587.0,2586.7,3.86591]
[1724080740240,0.8090587,2586.9,2586.6,3.86597]
[1724080740585,0.8090587,2586.8,2586.7,3.86592]
[1724080740752,0.8090587,2586.9,2586.8,3.86578]
[1724080740958,0.8090587,2586.9,2586.7,3.86591]
[1724080741284,0.8090587,2586.9,2586.7,7.73177]
[1724080741466,0.8090587,2587.0,2586.7,3.86586]
[1724080741634,0.8090587,2586.9,2586.8,7.73156]
[1724080741841,0.8090587,2587.1,2586.9,3.86563]
[1724080742067,0.8090587,2587.0,2586.9,3.86563]
[1724080742869,0.8090587,2587.0,2586.9,7.73126]
[1724080743070,0.8090587,2587.1,2587.0,3.86548]
[1724080743618,1.21390875,2587.2,2587.0,3.86548]
[1724080743769,0.80810408,2587.1,2587.0,3.86548]
[1724080744168,0.80810408,2587.1,2586.9,3.86562]
[1724080744437,0.80810408,2587.0,2586.9,3.86562]
[1724080745381,1.21390875,2587.1,2586.9,3.86562]
[1724080745382,0.80810408,2587.1,2586.9,3.86562]
[1724080745721,0.80810408,2587.1,2587.0,3.86548]
[1724080746273,0.80810408,2587.1,2587.0,4.55160499]
[1724080746914,0.86911995,2587.1,2587.0,3.86548]
[1724080747599,0.86911995,2587.1,2587.0,7.73096]
[1724080747983,0.86911995,2587.1,2587.0,3.86548]
[1724080748193,0.86911995,2587.1,2586.9,3.86562]
[1724080748390,0.80810408,2587.0,2586.9,3.86562]
[1724080748769,0.80810408,2587.0,2586.8,3.86567]
[1724080749024,0.80810408,2586.9,2586.6,3.86598]
[1724080749233,0.80816112,2586.8,2586.3,11.14643]
[1724080749381,0.80816112,2586.6,2586.4,3.86636]
[1724080749810,0.06102231,2586.5,2586.4,3.86636]
[1724080750593,0.86918343,2586.5,2586.3,3.86643]
[1724080750836,0.86918343,2586.5,2586.4,3.86637]
[1724080751334,2.45132231,2586.5,2586.1,3.86671]
[1724080751548,0.80843119,2586.4,2586.0,3.86696]
[1724080751841,0.80843119,2586.2,2586.0,3.86696]
[1724080752405,0.8694535,2586.1,2586.0,3.86689]
[1724080753416,0.8694535,2586.1,2585.6,3.86747]
[1724080753594,0.8087294,2585.8,2585.4,11.14776]
[1724080753795,0.8087294,2585.7,2585.2,3.8681]
[1724080754178,0.8087294,2585.7,2585.5,3.86772]
[1724080754179,0.86975171,2585.6,2585.5,3.86772]
[1724080754478,0.86975171,2585.6,2585.4,3.86787]
[1724080754920,0.86975171,2585.6,2585.4,3.86779]
[1724080755120,0.06102231,2585.6,2585.4,3.86779]
[1724080755391,0.86975171,2585.6,2585.2,8.12292]
[1724080755525,0.8087294,2585.6,2585.2,3.86803]
[1724080755726,0.05951973,2585.5,2585.4,3.86786]
[1724080756971,0.8087294,2585.8,2585.7,3.86742]
[1724080757183,1.21390875,2585.8,2585.7,3.86742]
[1724080757528,1.21390875,2585.9,2585.7,3.86742]
[1724080757724,1.21390875,2585.9,2585.8,3.86727]
[1724080757961,0.80848141,2585.9,2585.8,3.86727]
[1724080758378,0.80848141,2586.0,2585.8,3.86727]
[1724080758706,0.80848141,2585.9,2585.8,3.86727]
[1724080758846,0.80848474,2586.0,2585.9,3.86712]
[1724080759046,1.21390875,2586.1,2585.9,3.86712]
[1724080759246,1.21390875,2586.1,2585.9,7.73424]
[1724080759472,1.21390875,2586.1,2585.9,3.86712]
[1724080759678,1.21390875,2586.0,2585.9,3.86712]
[1724080759894,0.80851006,2586.0,2585.9,3.86712]
[1724080760099,1.21390875,2586.1,2585.9,3.86712]
[1724080760300,1.21390875,2586.0,2585.7,3.86732]
[1724080760453,0.80855366,2586.0,2585.7,3.86732]
[1724080760652,0.80855366,2585.9,2585.7,3.86732]
[1724080761865,0.05957134,2585.8,2585.7,8.121472]
[1724080762062,0.80855366,2586.0,2585.8,3.8672]
[1724080762564,0.05957134,2585.9,2585.8,7.73447]
[1724080762762,0.05957134,2585.9,2585.8,8.5465902]
[1724080763764,0.05957134,2585.9,2585.8,4.6793202]
[1724080763959,0.05957134,2585.9,2585.8,3.8672]
[1724080766477,0.05957134,2585.9,2585.6,3.86756]
[1724080766737,0.05957134,2585.9,2585.3,3.86802]
[1724080766738,0.80855366,2585.8,2585.3,3.86802]
[1724080766927,0.86818306,2585.8,2585.4,3.86786]
[1724080767134,0.86818306,2585.8,2585.3,3.86794]
[1724080767135,0.80855366,2585.7,2585.3,3.86794]
[1724080767281,3.29105366,2585.5,2585.0,7.28]
[1724080767595,3.29105366,2585.5,2585.1,3.86821]
[1724080767596,0.86818306,2585.4,2585.1,3.86821]
[1724080767796,0.86818306,2585.4,2585.2,3.86817]
[1724080768091,0.80855366,2585.3,2585.1,3.86831]
[1724080768528,0.0596294,2585.2,2585.1,3.86831]
[1724080768825,0.80855366,2585.4,2585.2,3.86817]
[1724080769343,0.80855366,2585.3,2585.2,3.86817]
[1724080769531,0.80855366,2585.4,2585.2,3.86817]
[1724080770618,3.29105366,2585.5,2585.3,3.86802]
[1724080771012,0.80855366,2585.4,2584.6,3.86902]
[1724080771229,0.80855366,2585.4,2584.5,29.53006915]
[1724080771230,0.80855366,2585.3,2584.9,3.86854]
[1724080771435,0.80855366,2585.3,2585.0,3.86842]
[1724080772448,0.80855366,2585.3,2584.9,3.86854]
[1724080773341,0.80855366,2585.3,2585.0,3.86846]
[1724080775417,0.80855366,2585.4,2584.9,3.86854]
[1724080775731,0.80855366,2585.4,2585.1,3.8683]
[1724080775930,0.80855366,2585.4,2585.1,3.86824]
[1724080776347,0.80855366,2585.4,2585.3,3.86802]
[1724080776531,0.80855366,2585.5,2585.4,3.86787]
[1724080776703,0.05890025,2585.4,2585.2,3.86816]
[1724080776921,0.86745391,2585.4,2585.2,3.86816]
[1724080777670,0.05890025,2585.4,2585.2,3.86816]
[1724080778166,0.05890025,2585.4,2585.1,3.8683]
[1724080778369,0.05890025,2585.4,2585.0,3.86845]
[1724080778661,0.86745391,2585.4,2585.0,3.86845]
[1724080778836,0.86745391,2585.4,2585.0,3.86838]
[1724080779033,0.05890025,2585.4,2585.0,7.73677]
[1724080779236,2.3861,2585.3,2584.9,3.86861]
[1724080779464,2.3861,2585.3,2584.6,3.86896]
[1724080779465,3.86848,2585.0,2584.6,3.86896]
[1724080779764,0.05888089,2584.9,2584.6,3.86896]
[1724080779966,0.05888089,2584.9,2584.5,8.55e-06]
[1724080780260,0.05888089,2584.9,2584.6,3.86905]
[1724080780907,0.05888089,2584.9,2584.6,3.869]
[1724080781256,3.86833,2585.1,2584.7,3.86888]
[1724080781461,0.05888089,2584.8,2584.7,3.86888]
[1724080781653,3.86833,2585.1,2584.7,3.86888]
[1724080782162,0.05838386,2585.0,2584.7,3.86888]
[1724080782605,0.05838386,2585.0,2584.6,3.86905]
[1724080783420,0.05838386,2585.0,2584.5,8.55e-06]
[1724080783421,3.86907,2584.6,2584.5,8.55e-06]
[1724080783619,10.05504,2584.6,2584.5,8.55e-06]
[1724080783920,15.59323452,2584.6,2584.5,8.55e-06]
[1724080784261,11.72416452,2584.6,2584.5,8.55e-06]
[1724080784486,13.08431895,2584.6,2584.5,8.55e-06]
[1724080785084,11.87437412,2584.6,2584.5,8.55e-06]
[1724080785601,13.08382883,2584.6,2584.5,8.55e-06]
[1724080787711,11.87437412,2584.6,2584.5,8.55e-06]
[1724080787875,13.08336411,2584.6,2584.5,8.55e-06]
[1724080788294,3.18118416,2584.6,2584.5,8.55e-06]
[1724080788507,2.37523866,2584.6,2584.5,8.55e-06]
[1724080788704,0.05833866,2584.6,2584.5,8.55e-06]
[1724080789072,6.25777,2584.8,2584.5,8.55e-06]
[1724080789586,0.057654,2584.7,2584.5,8.55e-06]
[1724080789784,12.55756999,2585.0,2584.5,8.55e-06]
[1724080789785,8.2859455,2585.0,2584.5,0.77388741]
[1724080790013,0.057654,2584.6,2584.5,3.86910855]
[1724080790209,12.1544155,2585.0,2584.5,3.86910855]
[1724080790415,0.057654,2584.6,2584.5,3.86910855]
[1724080790581,8.2859455,2585.0,2584.6,3.86904]
[1724080790788,8.2859455,2585.0,2584.7,3.86891]
[1724080791023,8.2859455,2585.0,2584.5,3.86907855]
[1724080791208,12.1544855,2585.0,2584.5,3.86907855]
[1724080791390,8.2859455,2585.0,2584.6,3.86904]
[1724080791589,0.057654,2584.9,2584.6,3.86899]
[1724080791781,0.057654,2584.9,2584.6,7.73798]
[1724080791983,0.057654,2584.9,2584.6,4.64278886]
[1724080792408,0.057654,2584.9,2584.8,3.86877]
[1724080792703,0.8059455,2585.4,2585.0,3.86846]
[1724080792910,4.6738455,2585.4,2585.0,0.773723]
[1724080793419,8.5417955,2585.4,2584.9,3.86861]
[1724080793620,4.6738455,2585.4,2584.9,3.86861]
[1724080793809,4.6738455,2585.4,2585.0,3.86846]
[1724080794009,4.6738455,2585.4,2585.0,4.642183]
[1724080794207,4.6738455,2585.4,2584.8,7.73739]
[1724080794595,0.8059455,2585.3,2584.7,3.86881]
[1724080794795,4.6741455,2585.2,2584.7,3.86881]
[1724080795047,0.8059455,2585.1,2584.7,3.86881]
[1724080795340,4.6741455,2585.2,2584.7,3.86881]
[1724080795493,0.8059455,2585.1,2584.8,3.86875]
[1724080795692,0.8059455,2585.2,2584.8,3.86869]
[1724080796195,4.6743755,2585.1,2584.5,8.55e-06]
[1724080796400,4.6743755,2585.1,2584.6,3.86903]
[1724080796401,0.8059455,2584.9,2584.6,3.86903]
[1724080797328,0.8059455,2584.9,2584.5,8.55e-06]
[1724080797329,0.8059455,2584.9,2584.5,3.86917855]
[1724080797700,0.8059455,2584.9,2584.8,3.86877]
[1724080797894,1.20898999,2585.1,2584.8,3.86864]
[1724080797895,0.8059455,2585.0,2584.8,3.86864]
[1724080798100,1.20898999,2585.1,2584.8,3.86864]
[1724080798101,0.8059455,2585.1,2585.0,3.86847]
[1724080798713,0.8059455,2585.1,2585.0,8.510648]
[1724080799036,0.8059455,2585.3,2585.1,3.86832]
[1724080799240,0.8059455,2585.3,2585.2,3.86817]
[1724080800316,0.8059455,2585.3,2585.1,3.86823]
[1724080800545,0.8059455,2585.2,2585.0,3.86845]
[1724080801199,0.8059455,2585.2,2584.9,3.86853]
[1724080801399,0.8059455,2585.2,2584.9,7.73705]
[1724080801400,0.8059455,2585.1,2584.9,7.73705]
[1724080801601,0.8059455,2585.1,2585.0,3.86847]
[1724080802043,0.8059455,2585.1,2585.0,7.73694]
[1724080802339,0.8059455,2585.1,2585.0,8.510634]
[1724080803015,0.8059455,2585.1,2585.0,3.86847]
[1724080803345,4.6742755,2585.1,2584.6,11.14893]
[1724080803515,0.80843949,2584.8,2584.6,11.14893]
[1724080803713,0.80843949,2584.8,2584.7,3.8689]
[1724080803928,0.80843949,2584.9,2584.8,3.86877]
[1724080804404,0.80843949,2584.9,2584.8,9.480157]
[1724080804748,0.80843949,2585.1,2584.8,5.611387]
[1724080804899,0.80843949,2585.2,2585.1,3.86832]
[1724080805104,0.80843949,2585.2,2585.1,7.73664]
[1724080805336,0.80843949,2585.3,2585.2,3.86817]
[1724080805522,1.21265924,2585.5,2585.3,3.86802]
[1724080805724,0.80857631,2585.4,2585.2,3.86817]
[1724080805926,0.80857631,2585.4,2584.7,2.4085]
[1724080805927,0.80857631,2585.4,2585.0,3.86838]
[1724080806146,0.80857631,2585.2,2585.0,3.86838]
[1724080806497,0.80857631,2585.1,2585.0,3.86838]
[1724080806698,0.86429517,2585.1,2585.0,3.86838]
[1724080807107,0.05571886,2585.1,2585.0,3.86838]
[1724080807303,0.05571886,2585.1,2585.0,8.30842434]
[1724080807947,0.80857631,2585.3,2585.0,0.57157434]
[1724080808245,0.05571886,2585.1,2585.0,3.86845]
[1724080808453,0.80857631,2585.2,2585.0,3.86845]
[1724080808622,0.86429517,2585.1,2585.0,3.86845]
[1724080808822,0.05571886,2585.1,2585.0,3.86845]
[1724080809336,0.86429517,2585.1,2585.0,3.86845]
[1724080810759,0.05571886,2585.1,2585.0,8.27961966]
[1724080811108,0.05571886,2585.1,2585.0,12.14808966]
[1724080811709,2.02123555,2585.3,2585.1,7.73664]
[1724080811915,1.21265924,2585.4,2585.3,3.86802]
[1724080812237,1.61078586,2585.4,2585.0,3.86838]
[1724080812559,0.80977447,2585.1,2585.0,3.86838]
[1724080813049,1.2146617,2585.1,2585.0,3.86838]
[1724080813354,1.2146617,2585.1,2585.0,7.73685]
[1724080814054,0.81007666,2585.1,2585.0,7.73685]